[Event "Titled Tuesday Blitz March 21 Late 2023"]
[White "Garcia Cuenca, Victor"]
[Black "Drori, Saar"]
[WhiteFideId "2250829"]
[BlackFideId "2812444"]
[WhiteElo "2329"]
[BlackElo "2322"]
[Result "0-1"]
[Round "04"]
[TimeControl "180+2"]
[Date "2023.03.21"]
[WhiteClock "0:00:07"]
[BlackClock "0:00:05"]

1. g3 {[%clk 0:03:00]}  c5 {[%clk 0:02:59]} 2. Bg2 {[%clk 0:02:59]}  g6 {[%clk 0:02:58]} 3. Nf3 {[%clk 0:03:00]}  Bg7 {[%clk 0:02:59]} 4. O-O {[%clk 0:03:00]}  Nc6 {[%clk 0:02:59]} 5. c4 {[%clk 0:02:57]}  e6 {[%clk 0:02:59]} 6. Nc3 {[%clk 0:02:58]}  Nge7 {[%clk 0:02:59]} 7. b3 {[%clk 0:02:53]}  d5 {[%clk 0:02:59]} 8. cxd5 {[%clk 0:02:53]}  exd5 {[%clk 0:02:58]} 9. Bb2 {[%clk 0:02:53]}  O-O {[%clk 0:02:58]} 10. Rc1 {[%clk 0:02:52]}  b6 {[%clk 0:02:58]} 11. d3 {[%clk 0:02:44]}  Bg4 {[%clk 0:02:54]} 12. h3 {[%clk 0:02:36]}  Bxf3 {[%clk 0:02:48]} 13. Bxf3 {[%clk 0:02:36]}  Nf5 {[%clk 0:02:43]} 14. Bg2 {[%clk 0:02:35]}  Re8 {[%clk 0:02:41]} 15. e4 {[%clk 0:02:28]}  dxe4 {[%clk 0:02:37]} 16. dxe4 {[%clk 0:02:26]}  Nfd4 {[%clk 0:02:37]} 17. Nd5 {[%clk 0:02:21]}  Qd6 {[%clk 0:02:28]} 18. Ba1 {[%clk 0:02:17]}  Rad8 {[%clk 0:02:27]} 19. Re1 {[%clk 0:02:12]}  Ne7 {[%clk 0:01:57]} 20. Qd3 {[%clk 0:02:09]}  Nec6 {[%clk 0:01:35]} 21. f4 {[%clk 0:02:01]}  Qd7 {[%clk 0:01:23]} 22. Kh2 {[%clk 0:01:56]}  Ne7 {[%clk 0:01:07]} 23. b4 {[%clk 0:01:53]}  Nxd5 {[%clk 0:00:59]} 24. exd5 {[%clk 0:01:54]}  Rxe1 {[%clk 0:00:57]} 25. Rxe1 {[%clk 0:01:54]}  Qa4 {[%clk 0:00:44]} 26. bxc5 {[%clk 0:01:42]}  bxc5 {[%clk 0:00:45]} 27. Qd2 {[%clk 0:01:13]}  Bf6 {[%clk 0:00:37]} 28. f5 {[%clk 0:01:07]}  Kg7 {[%clk 0:00:30]} 29. fxg6 {[%clk 0:01:02]}  hxg6 {[%clk 0:00:29]} 30. Qf2 {[%clk 0:00:58]}  Rd6 {[%clk 0:00:24]} 31. Rf1 {[%clk 0:00:54]}  Qc4 {[%clk 0:00:18]} 32. Bb2 {[%clk 0:00:52]}  Qd3 {[%clk 0:00:15]} 33. Bc1 {[%clk 0:00:49]}  Nf5 {[%clk 0:00:13]} 34. Bf4 {[%clk 0:00:48]}  Rd8 {[%clk 0:00:11]} 35. g4 {[%clk 0:00:40]}  Bd4 {[%clk 0:00:11]} 36. Qe1 {[%clk 0:00:36]}  Ne3 {[%clk 0:00:10]} 37. Rf3 {[%clk 0:00:28]}  Nxg2 {[%clk 0:00:09]} 38. Kxg2 {[%clk 0:00:23]}  Qc2+ {[%clk 0:00:09]} 39. Kg3 {[%clk 0:00:20]}  Rxd5 {[%clk 0:00:09]} 40. Qe8 {[%clk 0:00:18]}  Bf6 {[%clk 0:00:06]} 41. Bh6+ {[%clk 0:00:09]}  Kxh6 {[%clk 0:00:05]} 42. Rxf6 {[%clk 0:00:09]}  Qc3+ {[%clk 0:00:04]} 43. Rf3 {[%clk 0:00:08]}  Qe5+ {[%clk 0:00:05]} 44. Qxe5 {[%clk 0:00:07]}  Rxe5 {[%clk 0:00:06]} 45. Rc3 {[%clk 0:00:07]}  Kg5 {[%clk 0:00:05]} 46. h4+ {[%clk 0:00:08]}  Kf6 {[%clk 0:00:05]} 47. Kf4 {[%clk 0:00:08]}  Ke6 {[%clk 0:00:06]} 48. Ra3 {[%clk 0:00:08]}  c4 {[%clk 0:00:04]} 49. Ra6+ {[%clk 0:00:07]}  Kd5 {[%clk 0:00:04]} 50. Ra5+ {[%clk 0:00:07]}  Kd4 {[%clk 0:00:04]} 51. Rxe5 {[%clk 0:00:07]}  c3 {[%clk 0:00:05]} 52. Re7 {[%clk 0:00:07]}  c2 {[%clk 0:00:04]} 53. Rc7 {[%clk 0:00:07]}  Kd3 {[%clk 0:00:04]} 54. h5 {[%clk 0:00:07]}  gxh5 {[%clk 0:00:04]} 55. gxh5 {[%clk 0:00:07]}  Kd2 {[%clk 0:00:05]} 56. h6 {[%clk 0:00:06]}  c1=Q {[%clk 0:00:04]} 57. Rxc1 {[%clk 0:00:07]}  Kxc1 {[%clk 0:00:05]} 0-1


[Site "https://www.chess.com"]

[Event "Titled Tuesday Blitz March 21 Late 2023"]
[White "Domingo Nunez, Alejandro"]
[Black "Onslow, Alfie"]
[WhiteFideId "22245561"]
[BlackFideId "436976"]
[WhiteElo "2230"]
[BlackElo "2114"]
[Result "1-0"]
[Round "04"]
[TimeControl "180+2"]
[Date "2023.03.21"]
[WhiteClock "0:00:36"]
[BlackClock "0:01:24"]

1. Nf3 {[%clk 0:03:00]}  c5 {[%clk 0:02:59]} 2. g3 {[%clk 0:03:00]}  Nc6 {[%clk 0:02:59]} 3. d4 {[%clk 0:03:00]}  cxd4 {[%clk 0:02:58]} 4. Nxd4 {[%clk 0:03:01]}  Nf6 {[%clk 0:02:47]} 5. Bg2 {[%clk 0:03:00]}  e5 {[%clk 0:02:47]} 6. Nxc6 {[%clk 0:02:55]}  bxc6 {[%clk 0:02:46]} 7. O-O {[%clk 0:02:54]}  Be7 {[%clk 0:02:46]} 8. c4 {[%clk 0:02:54]}  O-O {[%clk 0:02:46]} 9. Nc3 {[%clk 0:02:55]}  Qc7 {[%clk 0:02:42]} 10. Bg5 {[%clk 0:02:26]}  d6 {[%clk 0:02:41]} 11. Rc1 {[%clk 0:02:24]}  Rb8 {[%clk 0:02:38]} 12. b3 {[%clk 0:02:24]}  h6 {[%clk 0:02:30]} 13. Bxf6 {[%clk 0:02:10]}  Bxf6 {[%clk 0:02:31]} 14. Qd3 {[%clk 0:02:10]}  Be7 {[%clk 0:02:30]} 15. Rfd1 {[%clk 0:02:09]}  f5 {[%clk 0:02:24]} 16. f4 {[%clk 0:01:10]}  e4 {[%clk 0:02:21]} 17. Qd2 {[%clk 0:01:10]}  Be6 {[%clk 0:02:17]} 18. e3 {[%clk 0:01:09]}  Bf6 {[%clk 0:02:15]} 19. Qxd6 {[%clk 0:01:06]}  Qf7 {[%clk 0:01:59]} 20. Qxc6 {[%clk 0:01:01]}  Rfd8 {[%clk 0:01:59]} 21. Nd5 {[%clk 0:01:00]}  Rbc8 {[%clk 0:01:52]} 22. Nxf6+ {[%clk 0:00:44]}  Qxf6 {[%clk 0:01:52]} 23. Qa6 {[%clk 0:00:44]}  Qb2 {[%clk 0:01:30]} 24. Qxe6+ {[%clk 0:00:43]}  Kh8 {[%clk 0:01:31]} 25. Qxf5 {[%clk 0:00:37]}  Qxa2 {[%clk 0:01:24]} 26. Bxe4 {[%clk 0:00:36]} 1-0


[Site "https://www.chess.com"]

[Event "Titled Tuesday Blitz March 21 Late 2023"]
[White "Jeet, Jain"]
[Black "EREBUNI91"]
[WhiteFideId "5073022"]
[WhiteElo "2067"]
[BlackElo "2707"]
[Result "0-1"]
[Round "04"]
[TimeControl "180+2"]
[Date "2023.03.21"]
[WhiteClock "0:00:08"]
[BlackClock "0:00:08"]

1. Nf3 {[%clk 0:03:00]}  Nf6 {[%clk 0:03:00]} 2. g3 {[%clk 0:03:00]}  b6 {[%clk 0:02:59]} 3. Bg2 {[%clk 0:03:01]}  Bb7 {[%clk 0:03:00]} 4. O-O {[%clk 0:03:01]}  e6 {[%clk 0:03:00]} 5. d4 {[%clk 0:03:01]}  Be7 {[%clk 0:03:00]} 6. c4 {[%clk 0:03:02]}  O-O {[%clk 0:03:01]} 7. Nc3 {[%clk 0:03:03]}  Ne4 {[%clk 0:03:02]} 8. Nxe4 {[%clk 0:03:01]}  Bxe4 {[%clk 0:03:03]} 9. Nd2 {[%clk 0:03:02]}  Bxg2 {[%clk 0:03:02]} 10. Kxg2 {[%clk 0:03:03]}  d5 {[%clk 0:03:01]} 11. e4 {[%clk 0:03:03]}  c6 {[%clk 0:03:00]} 12. b3 {[%clk 0:03:01]}  Nd7 {[%clk 0:03:00]} 13. Bb2 {[%clk 0:03:01]}  Rc8 {[%clk 0:03:00]} 14. Rc1 {[%clk 0:02:58]}  dxe4 {[%clk 0:03:00]} 15. Nxe4 {[%clk 0:02:59]}  Nf6 {[%clk 0:03:00]} 16. Qf3 {[%clk 0:02:56]}  Nxe4 {[%clk 0:03:00]} 17. Qxe4 {[%clk 0:02:53]}  Bf6 {[%clk 0:02:59]} 18. Rfd1 {[%clk 0:02:53]}  Qd7 {[%clk 0:02:59]} 19. Rc2 {[%clk 0:02:53]}  Rfd8 {[%clk 0:03:00]} 20. Rcd2 {[%clk 0:02:53]}  Qe7 {[%clk 0:02:59]} 21. d5 {[%clk 0:02:43]}  Bxb2 {[%clk 0:02:27]} 22. Rxb2 {[%clk 0:02:43]}  cxd5 {[%clk 0:02:27]} 23. cxd5 {[%clk 0:02:43]}  Qb7 {[%clk 0:02:28]} 24. Rbd2 {[%clk 0:02:42]}  Rc5 {[%clk 0:02:28]} 25. Kf3 {[%clk 0:02:10]}  exd5 {[%clk 0:02:03]} 26. Kg2 {[%clk 0:02:09]}  g6 {[%clk 0:01:59]} 27. Qd4 {[%clk 0:02:09]}  Qe7 {[%clk 0:01:55]} 28. Rd3 {[%clk 0:02:05]}  Re8 {[%clk 0:01:51]} 29. b4 {[%clk 0:02:01]}  Rc4 {[%clk 0:01:46]} 30. Qxd5 {[%clk 0:02:01]}  Rxb4 {[%clk 0:01:46]} 31. Re3 {[%clk 0:01:58]}  Re4 {[%clk 0:01:45]} 32. Rf3 {[%clk 0:01:36]}  Qe6 {[%clk 0:01:21]} 33. Qb7 {[%clk 0:01:33]}  Re7 {[%clk 0:01:19]} 34. Qa8+ {[%clk 0:01:32]}  Kg7 {[%clk 0:01:19]} 35. Rd8 {[%clk 0:01:32]}  f5 {[%clk 0:01:05]} 36. Rh8 {[%clk 0:01:26]}  Qf7 {[%clk 0:01:00]} 37. Rd3 {[%clk 0:01:14]}  Re8 {[%clk 0:00:59]} 38. Rxe8 {[%clk 0:01:02]}  Rxe8 {[%clk 0:01:00]} 39. Qc6 {[%clk 0:01:01]}  Re7 {[%clk 0:00:58]} 40. a4 {[%clk 0:01:00]}  Qf6 {[%clk 0:00:47]} 41. Qc8 {[%clk 0:01:00]}  Qe5 {[%clk 0:00:45]} 42. Rd8 {[%clk 0:00:45]}  Qe4+ {[%clk 0:00:45]} 43. Kg1 {[%clk 0:00:40]}  Rf7 {[%clk 0:00:36]} 44. Rg8+ {[%clk 0:00:37]}  Kh6 {[%clk 0:00:37]} 45. Qc1+ {[%clk 0:00:37]}  f4 {[%clk 0:00:37]} 46. Rc8 {[%clk 0:00:23]}  Qxa4 {[%clk 0:00:24]} 47. Rc4 {[%clk 0:00:23]}  Qd7 {[%clk 0:00:20]} 48. Rxf4 {[%clk 0:00:23]}  Rxf4 {[%clk 0:00:20]} 49. Qxf4+ {[%clk 0:00:24]}  Kg7 {[%clk 0:00:21]} 50. Qe5+ {[%clk 0:00:24]}  Kf7 {[%clk 0:00:21]} 51. Qf4+ {[%clk 0:00:24]}  Ke7 {[%clk 0:00:21]} 52. Qh4+ {[%clk 0:00:23]}  Kd6 {[%clk 0:00:22]} 53. Qd4+ {[%clk 0:00:22]}  Kc6 {[%clk 0:00:22]} 54. Qa4+ {[%clk 0:00:22]}  Kd6 {[%clk 0:00:21]} 55. Qd4+ {[%clk 0:00:22]}  Ke7 {[%clk 0:00:22]} 56. Qg7+ {[%clk 0:00:21]}  Kd8 {[%clk 0:00:22]} 57. Qf6+ {[%clk 0:00:20]}  Kc7 {[%clk 0:00:23]} 58. Qe5+ {[%clk 0:00:20]}  Kb7 {[%clk 0:00:23]} 59. Qe4+ {[%clk 0:00:20]}  Ka6 {[%clk 0:00:19]} 60. Qe2+ {[%clk 0:00:19]}  b5 {[%clk 0:00:20]} 61. Qa2+ {[%clk 0:00:18]}  Kb6 {[%clk 0:00:20]} 62. h4 {[%clk 0:00:17]}  a5 {[%clk 0:00:20]} 63. h5 {[%clk 0:00:17]}  b4 {[%clk 0:00:16]} 64. hxg6 {[%clk 0:00:17]}  hxg6 {[%clk 0:00:16]} 65. Qe2 {[%clk 0:00:17]}  a4 {[%clk 0:00:15]} 66. Qe3+ {[%clk 0:00:17]}  Kb5 {[%clk 0:00:14]} 67. Qe5+ {[%clk 0:00:17]}  Kc4 {[%clk 0:00:14]} 68. Qe4+ {[%clk 0:00:18]}  Qd4 {[%clk 0:00:13]} 69. Qxg6 {[%clk 0:00:17]}  a3 {[%clk 0:00:14]} 70. Qe6+ {[%clk 0:00:18]}  Kc3 {[%clk 0:00:14]} 71. Qe1+ {[%clk 0:00:17]}  Kb3 {[%clk 0:00:14]} 72. Qb1+ {[%clk 0:00:16]}  Ka4 {[%clk 0:00:14]} 73. Qc2+ {[%clk 0:00:13]}  b3 {[%clk 0:00:15]} 74. Qc6+ {[%clk 0:00:14]}  Kb4 {[%clk 0:00:15]} 75. Qb7+ {[%clk 0:00:12]}  Kc3 {[%clk 0:00:15]} 76. Qc6+ {[%clk 0:00:12]}  Kb2 {[%clk 0:00:16]} 77. Qe6 {[%clk 0:00:10]}  a2 {[%clk 0:00:07]} 78. Qe2+ {[%clk 0:00:10]}  Kc1 {[%clk 0:00:07]} 79. Qe1+ {[%clk 0:00:08]}  Qd1 {[%clk 0:00:08]} 0-1


[Site "https://www.chess.com"]

[Event "Titled Tuesday Blitz March 21 Late 2023"]
[White "Diaz Perez, Michel Alejandro"]
[Black "Jimenez Jimenez, Leandro"]
[WhiteFideId "3517179"]
[BlackFideId "6415253"]
[WhiteElo "2333"]
[BlackElo "2263"]
[Result "1-0"]
[Round "04"]
[TimeControl "180+2"]
[Date "2023.03.21"]
[WhiteClock "0:02:27"]
[BlackClock "0:00:52"]

1. Nf3 {[%clk 0:03:00]}  d5 {[%clk 0:02:50]} 2. c4 {[%clk 0:03:01]}  d4 {[%clk 0:02:45]} 3. e3 {[%clk 0:03:01]}  c5 {[%clk 0:02:45]} 4. exd4 {[%clk 0:03:01]}  cxd4 {[%clk 0:02:46]} 5. d3 {[%clk 0:03:02]}  Nc6 {[%clk 0:02:46]} 6. g3 {[%clk 0:03:02]}  e5 {[%clk 0:02:46]} 7. Bg2 {[%clk 0:03:03]}  Bd6 {[%clk 0:02:46]} 8. O-O {[%clk 0:03:02]}  Nf6 {[%clk 0:02:47]} 9. b4 {[%clk 0:02:55]}  Nxb4 {[%clk 0:02:20]} 10. Re1 {[%clk 0:02:45]}  Nc6 {[%clk 0:02:07]} 11. Nxe5 {[%clk 0:02:44]}  Nxe5 {[%clk 0:01:57]} 12. f4 {[%clk 0:02:44]}  Ng4 {[%clk 0:01:56]} 13. fxe5 {[%clk 0:02:43]}  Nxe5 {[%clk 0:01:55]} 14. Bf4 {[%clk 0:02:41]}  Qc7 {[%clk 0:01:45]} 15. Bxe5 {[%clk 0:02:33]}  Bxe5 {[%clk 0:01:43]} 16. Qh5 {[%clk 0:02:34]}  Bf5 {[%clk 0:01:09]} 17. Qxf5 {[%clk 0:02:32]}  O-O {[%clk 0:00:52]} 18. Qxe5 {[%clk 0:02:27]} 1-0


[Site "https://www.chess.com"]

[Event "Titled Tuesday Blitz March 21 Late 2023"]
[White "Sai Krishna G V"]
[Black "Rios Escobar, Adan"]
[WhiteFideId "5028280"]
[BlackFideId "3403645"]
[WhiteElo "2359"]
[BlackElo "2402"]
[Result "1-0"]
[Round "04"]
[TimeControl "180+2"]
[Date "2023.03.21"]
[WhiteClock "0:00:07"]
[BlackClock "0:00:02"]

1. d4 {[%clk 0:03:00]}  Nf6 {[%clk 0:02:56]} 2. Bg5 {[%clk 0:02:58]}  e6 {[%clk 0:02:50]} 3. e4 {[%clk 0:02:55]}  c5 {[%clk 0:02:50]} 4. e5 {[%clk 0:02:49]}  h6 {[%clk 0:02:49]} 5. Bh4 {[%clk 0:02:49]}  g5 {[%clk 0:02:47]} 6. Bg3 {[%clk 0:02:49]}  Ne4 {[%clk 0:02:36]} 7. d5 {[%clk 0:02:49]}  Nxg3 {[%clk 0:02:24]} 8. hxg3 {[%clk 0:02:48]}  Bg7 {[%clk 0:01:56]} 9. f4 {[%clk 0:02:45]}  d6 {[%clk 0:01:50]} 10. Bb5+ {[%clk 0:02:06]}  Kf8 {[%clk 0:01:49]} 11. Ne2 {[%clk 0:01:58]}  dxe5 {[%clk 0:01:38]} 12. fxg5 {[%clk 0:01:54]}  exd5 {[%clk 0:01:30]} 13. g6 {[%clk 0:01:54]}  fxg6 {[%clk 0:01:21]} 14. Nbc3 {[%clk 0:01:49]}  d4 {[%clk 0:01:15]} 15. Bc4 {[%clk 0:01:39]}  Bf6 {[%clk 0:00:41]} 16. Ne4 {[%clk 0:01:27]}  Kg7 {[%clk 0:00:38]} 17. O-O {[%clk 0:01:22]}  Rf8 {[%clk 0:00:28]} 18. Nxc5 {[%clk 0:01:19]}  Qb6 {[%clk 0:00:22]} 19. Na4 {[%clk 0:00:28]}  Qc6 {[%clk 0:00:17]} 20. Qd3 {[%clk 0:00:14]}  a6 {[%clk 0:00:15]} 21. Qb3 {[%clk 0:00:08]}  Nd7 {[%clk 0:00:08]} 22. Bd5 {[%clk 0:00:08]}  Qd6 {[%clk 0:00:06]} 23. c4 {[%clk 0:00:08]}  Nc5 {[%clk 0:00:04]} 24. Nxc5 {[%clk 0:00:08]}  Qxc5 {[%clk 0:00:05]} 25. Nc1 {[%clk 0:00:08]}  d3+ {[%clk 0:00:03]} 26. Kh2 {[%clk 0:00:08]}  Bf5 {[%clk 0:00:02]} 27. Nxd3 {[%clk 0:00:08]}  Bxd3 {[%clk 0:00:02]} 28. Qxd3 {[%clk 0:00:08]}  Rad8 {[%clk 0:00:02]} 29. Qb3 {[%clk 0:00:08]}  b5 {[%clk 0:00:02]} 30. Rad1 {[%clk 0:00:07]}  bxc4 {[%clk 0:00:02]} 31. Bxc4 {[%clk 0:00:07]}  Rb8 {[%clk 0:00:02]} 32. Rd7+ {[%clk 0:00:06]}  Kh8 {[%clk 0:00:02]} 33. Qd3 {[%clk 0:00:07]}  Rbc8 {[%clk 0:00:02]} 34. Qxg6 {[%clk 0:00:07]}  e4 {[%clk 0:00:02]} 35. Qh7# {[%clk 0:00:07]} 1-0


[Site "https://www.chess.com"]

[Event "Titled Tuesday Blitz March 21 Late 2023"]
[White "Castellanos Gomez, Alejandro"]
[Black "Araujo Sanchez, Josue"]
[WhiteFideId "22284141"]
[BlackFideId "6416896"]
[WhiteElo "2158"]
[BlackElo "2416"]
[Result "1-0"]
[Round "04"]
[TimeControl "180+2"]
[Date "2023.03.21"]
[WhiteClock "0:00:23"]
[BlackClock "0:00:07"]

1. d4 {[%clk 0:03:00]}  Nf6 {[%clk 0:02:59]} 2. Bf4 {[%clk 0:03:01]}  g6 {[%clk 0:02:43]} 3. Nc3 {[%clk 0:03:00]}  d5 {[%clk 0:02:42]} 4. Qd2 {[%clk 0:02:59]}  Bg7 {[%clk 0:02:41]} 5. Bh6 {[%clk 0:02:58]}  O-O {[%clk 0:02:41]} 6. h4 {[%clk 0:02:55]}  Bxh6 {[%clk 0:02:31]} 7. Qxh6 {[%clk 0:02:54]}  Ng4 {[%clk 0:02:31]} 8. Qd2 {[%clk 0:02:52]}  h5 {[%clk 0:02:29]} 9. f3 {[%clk 0:02:51]}  Nf6 {[%clk 0:02:28]} 10. O-O-O {[%clk 0:02:47]}  Bf5 {[%clk 0:02:24]} 11. g4 {[%clk 0:02:20]}  hxg4 {[%clk 0:02:22]} 12. h5 {[%clk 0:02:20]}  Nc6 {[%clk 0:01:52]} 13. hxg6 {[%clk 0:02:18]}  fxg6 {[%clk 0:01:53]} 14. Qh6 {[%clk 0:02:09]}  Kf7 {[%clk 0:01:51]} 15. e4 {[%clk 0:02:01]}  dxe4 {[%clk 0:01:45]} 16. fxe4 {[%clk 0:01:59]}  Nxe4 {[%clk 0:01:40]} 17. Bc4+ {[%clk 0:01:57]}  e6 {[%clk 0:01:34]} 18. d5 {[%clk 0:01:20]}  Ne5 {[%clk 0:00:58]} 19. dxe6+ {[%clk 0:01:19]}  Kf6 {[%clk 0:00:58]} 20. Qh4+ {[%clk 0:01:11]}  g5 {[%clk 0:00:46]} 21. Qh6+ {[%clk 0:01:10]}  Ng6 {[%clk 0:00:45]} 22. Rxd8 {[%clk 0:01:04]}  Rfxd8 {[%clk 0:00:44]} 23. Qh2 {[%clk 0:00:32]}  Rh8 {[%clk 0:00:13]} 24. Nxe4+ {[%clk 0:00:31]}  Bxe4 {[%clk 0:00:12]} 25. Qf2+ {[%clk 0:00:32]}  Nf4 {[%clk 0:00:11]} 26. Rxh8 {[%clk 0:00:33]}  Rxh8 {[%clk 0:00:11]} 27. Qd4+ {[%clk 0:00:23]}  Kf5 {[%clk 0:00:07]} 28. Qxh8 {[%clk 0:00:23]} 1-0


[Site "https://www.chess.com"]

[Event "Titled Tuesday Blitz March 21 Late 2023"]
[White "liwadas82"]
[Black "Kurtz, Eric M"]
[BlackFideId "30939763"]
[WhiteElo "2399"]
[BlackElo "2619"]
[Result "0-1"]
[Round "04"]
[TimeControl "180+2"]
[Date "2023.03.21"]
[WhiteClock "0:00:02"]
[BlackClock "0:00:37"]

1. e4 {[%clk 0:03:00]}  d6 {[%clk 0:02:59]} 2. d4 {[%clk 0:03:00]}  Nf6 {[%clk 0:02:59]} 3. Nc3 {[%clk 0:03:00]}  g6 {[%clk 0:03:00]} 4. Be3 {[%clk 0:03:00]}  c6 {[%clk 0:02:59]} 5. f3 {[%clk 0:03:00]}  Nbd7 {[%clk 0:02:59]} 6. Qd2 {[%clk 0:03:00]}  b5 {[%clk 0:03:00]} 7. O-O-O {[%clk 0:03:00]}  Nb6 {[%clk 0:02:59]} 8. Bd3 {[%clk 0:02:54]}  Qc7 {[%clk 0:02:57]} 9. g4 {[%clk 0:02:53]}  h5 {[%clk 0:02:53]} 10. g5 {[%clk 0:02:52]}  Nfd7 {[%clk 0:02:53]} 11. Kb1 {[%clk 0:02:51]}  b4 {[%clk 0:02:53]} 12. Nce2 {[%clk 0:02:50]}  a5 {[%clk 0:02:54]} 13. Nc1 {[%clk 0:02:46]}  Bg7 {[%clk 0:02:53]} 14. Nge2 {[%clk 0:02:39]}  c5 {[%clk 0:02:54]} 15. Bb5 {[%clk 0:02:32]}  O-O {[%clk 0:02:53]} 16. Rhe1 {[%clk 0:01:50]}  a4 {[%clk 0:02:51]} 17. f4 {[%clk 0:01:42]}  Ra5 {[%clk 0:02:46]} 18. Bxd7 {[%clk 0:01:39]}  Bxd7 {[%clk 0:02:43]} 19. b3 {[%clk 0:01:37]}  axb3 {[%clk 0:02:42]} 20. cxb3 {[%clk 0:01:38]}  Rfa8 {[%clk 0:02:34]} 21. dxc5 {[%clk 0:01:19]}  dxc5 {[%clk 0:02:32]} 22. Qc2 {[%clk 0:01:17]}  Be6 {[%clk 0:01:54]} 23. Rd2 {[%clk 0:01:16]}  c4 {[%clk 0:01:47]} 24. Bxb6 {[%clk 0:01:00]}  Qxb6 {[%clk 0:01:46]} 25. bxc4 {[%clk 0:01:01]}  b3 {[%clk 0:01:30]} 26. Qxb3 {[%clk 0:00:49]}  Qc7 {[%clk 0:01:29]} 27. Qc2 {[%clk 0:00:22]}  Bxc4 {[%clk 0:01:26]} 28. Nd4 {[%clk 0:00:13]}  Qxf4 {[%clk 0:01:15]} 29. Red1 {[%clk 0:00:10]}  Rb8+ {[%clk 0:00:53]} 30. Ndb3 {[%clk 0:00:09]}  Bxb3 {[%clk 0:00:46]} 31. Nxb3 {[%clk 0:00:09]}  Raa8 {[%clk 0:00:41]} 32. Rd3 {[%clk 0:00:03]}  Qe5 {[%clk 0:00:38]} 33. Rd4 {[%clk 0:00:02]}  Qxg5 {[%clk 0:00:37]} 0-1


[Site "https://www.chess.com"]

[Event "Titled Tuesday Blitz March 21 Late 2023"]
[White "Liu, Casper"]
[Black "Pinheiro, Iung Alicio de O."]
[WhiteFideId "1454153"]
[BlackFideId "2104350"]
[WhiteElo "2221"]
[BlackElo "2283"]
[Result "1-0"]
[Round "04"]
[TimeControl "180+2"]
[Date "2023.03.21"]
[WhiteClock "0:00:13"]
[BlackClock "0:00:08"]

1. d4 {[%clk 0:03:00]}  Nf6 {[%clk 0:02:58]} 2. c4 {[%clk 0:03:00]}  g6 {[%clk 0:02:57]} 3. Nc3 {[%clk 0:03:00]}  Bg7 {[%clk 0:02:54]} 4. e4 {[%clk 0:02:58]}  d6 {[%clk 0:02:55]} 5. Be2 {[%clk 0:02:58]}  O-O {[%clk 0:02:51]} 6. g4 {[%clk 0:02:58]}  c5 {[%clk 0:02:49]} 7. g5 {[%clk 0:02:56]}  Ne8 {[%clk 0:02:28]} 8. d5 {[%clk 0:02:57]}  e6 {[%clk 0:02:27]} 9. h4 {[%clk 0:02:56]}  exd5 {[%clk 0:02:27]} 10. exd5 {[%clk 0:02:53]}  Nc7 {[%clk 0:02:25]} 11. h5 {[%clk 0:02:52]}  Re8 {[%clk 0:02:18]} 12. hxg6 {[%clk 0:02:46]}  hxg6 {[%clk 0:02:16]} 13. Qd3 {[%clk 0:02:40]}  b5 {[%clk 0:02:13]} 14. cxb5 {[%clk 0:02:19]}  Nd7 {[%clk 0:02:08]} 15. Qh3 {[%clk 0:02:08]}  Nb6 {[%clk 0:01:48]} 16. Qh7+ {[%clk 0:01:55]}  Kf8 {[%clk 0:01:46]} 17. Bd2 {[%clk 0:01:32]}  Nbxd5 {[%clk 0:01:29]} 18. O-O-O {[%clk 0:01:30]}  Nxc3 {[%clk 0:01:13]} 19. Bxc3 {[%clk 0:01:28]}  Qxg5+ {[%clk 0:01:12]} 20. Kb1 {[%clk 0:01:27]}  Bf5+ {[%clk 0:01:10]} 21. Ka1 {[%clk 0:01:28]}  Bxc3 {[%clk 0:01:10]} 22. bxc3 {[%clk 0:01:28]}  Qf6 {[%clk 0:01:05]} 23. Kb2 {[%clk 0:01:25]}  Rab8 {[%clk 0:00:59]} 24. a4 {[%clk 0:01:23]}  a6 {[%clk 0:00:58]} 25. Qh8+ {[%clk 0:00:59]}  Qxh8 {[%clk 0:00:57]} 26. Rxh8+ {[%clk 0:00:59]}  Ke7 {[%clk 0:00:49]} 27. Rxe8+ {[%clk 0:01:00]}  Nxe8 {[%clk 0:00:43]} 28. c4 {[%clk 0:00:58]}  a5 {[%clk 0:00:38]} 29. Nf3 {[%clk 0:00:56]}  Nc7 {[%clk 0:00:39]} 30. Nd2 {[%clk 0:00:55]}  Na8 {[%clk 0:00:38]} 31. Nb3 {[%clk 0:00:55]}  Nb6 {[%clk 0:00:38]} 32. Nxa5 {[%clk 0:00:54]}  Nxa4+ {[%clk 0:00:38]} 33. Kb3 {[%clk 0:00:51]}  Ra8 {[%clk 0:00:39]} 34. Nc6+ {[%clk 0:00:43]}  Kd7 {[%clk 0:00:33]} 35. Bf3 {[%clk 0:00:33]}  Kc7 {[%clk 0:00:31]} 36. Ne7 {[%clk 0:00:26]}  Ra7 {[%clk 0:00:16]} 37. Nxf5 {[%clk 0:00:20]}  gxf5 {[%clk 0:00:16]} 38. Ra1 {[%clk 0:00:21]}  d5 {[%clk 0:00:10]} 39. Bxd5 {[%clk 0:00:19]}  Kd6 {[%clk 0:00:09]} 40. Rxa4 {[%clk 0:00:19]}  Re7 {[%clk 0:00:10]} 41. Ra6+ {[%clk 0:00:19]}  Ke5 {[%clk 0:00:10]} 42. b6 {[%clk 0:00:19]}  Kd4 {[%clk 0:00:10]} 43. b7 {[%clk 0:00:20]}  Re1 {[%clk 0:00:10]} 44. Kc2 {[%clk 0:00:17]}  Re2+ {[%clk 0:00:10]} 45. Kc1 {[%clk 0:00:17]}  Re1+ {[%clk 0:00:10]} 46. Kd2 {[%clk 0:00:14]}  Rb1 {[%clk 0:00:09]} 47. Ra8 {[%clk 0:00:14]}  Rb2+ {[%clk 0:00:09]} 48. Kc1 {[%clk 0:00:14]}  Rxf2 {[%clk 0:00:07]} 49. b8=Q {[%clk 0:00:14]}  Kc3 {[%clk 0:00:08]} 50. Qe5+ {[%clk 0:00:13]}  Kd3 {[%clk 0:00:08]} 51. Ra3# {[%clk 0:00:13]} 1-0


[Site "https://www.chess.com"]